Cogmind - Beta 11 @@@ ROGUE MODE // 2022.03.25 @ 10:25:20 Player: Happytimes Result: Self-destructed Performance ------------- Evolutions (2) 1000 Regions Visited (5) 1000 Robots Destroyed (28) 140 Value Destroyed (555) 555 Prototype IDs (1) 20 Alien Tech Used (0) 0 Bonus (210) 210 TOTAL SCORE: 2925 Bonus ------- High Alert Combat Kills 17 Follower Combat Kills 209 Friendly Fire -16 Cogmind --------- Core Integrity 95/550 Matter 268/300 Energy 100/100 System Corruption 0% Temperature Cool (0) Movement Core (150) Ox2 Location -8/Materials Parts ------- > --- POWER (2) -------- (None) > --- PROPULSION (3) --- (None) > --- UTILITY (3) ------ Small Storage Unit > --- WEAPON (3) ------- Gauss Rifle > --- INVENTORY (8) ---- Improved Ion Engine Cesium-ion Thruster System Shield System Restoration Module Mini Grenade Launcher Heavy Rocket Launcher Improved Datajack Peak State ------------ > --- POWER ------------ Ion Engine Light Nuclear Core > --- PROPULSION ------- Hover Unit Hover Unit Hover Unit > --- UTILITY ---------- Small Storage Unit Improved Sensor Array Hacking Suite > --- WEAPON ----------- Gauss Rifle Gauss Rifle Gauss Rifle > --- INVENTORY -------- Light Ion Engine Improved Ion Engine Light Nuclear Core Cesium-ion Thruster System Shield Mini Grenade Launcher Heavy Rocket Launcher Improved Datajack [Rating: 28] Favorites ----------- Power Ion Engine Engine Ion Engine Power Core Light Nuclear Core Propulsion Hover Unit Wheel Wheel Hover Unit Hover Unit Utility Small Storage Unit Device Improved Sensor Array Storage Small Storage Unit Processor Visual Processing Unit Hackware Hacking Suite Weapon Gauss Rifle Energy Gun Backup Laser I Ballistic Gun Gauss Rifle Ballistic Cannon Light Cannon Launcher Mini Grenade Launcher Impact Weapon Heavy Mace Build | -11 -10 -10 -10 -9 -8 ------- Run | Scr Mat Min Exi Min Mat Slots Evolved 4 | . . . . . 4 Power 1 | . . . . . 1 Propulsion 1 | . . . . . 1 Utility 1 | . . . . . 1 Weapon 1 | . . . . . 1 Parts Attached 35 | 5 6 . . 5 19 Power 5 | 1 1 . . . 3 Engine 3 | 1 1 . . . 1 Core 2 | . . . . . 2 Reactor . | . . . . . . Propulsion 8 | 2 2 . . 1 3 Treads . | . . . . . . Leg . | . . . . . . Wheel 2 | 2 . . . . . Hover 6 | . 2 . . 1 3 Flight . | . . . . . . Utility 4 | 1 2 . . . 1 Device 1 | . . . . . 1 Storage 1 | 1 . . . . . Processor 1 | . 1 . . . . Hackware 1 | . 1 . . . . Protection . | . . . . . . Artifact . | . . . . . . Weapon 18 | 1 1 . . 4 12 Energy Gun 4 | 1 . . . 2 1 Energy Cannon . | . . . . . . Ballistic Gun 8 | . . . . . 8 Ballistic Cannon 2 | . 1 . . 1 . Launcher 3 | . . . . 1 2 Special Weapon . | . . . . . . Impact Weapon 1 | . . . . . 1 Slashing Weapon . | . . . . . . Piercing Weapon . | . . . . . . Special Melee Weapon . | . . . . . . Unidentified Prototypes 1 | . . . . . 1 Parts Lost 11 | . . . . . 11 Power 2 | . . . . . 2 Propulsion 4 | . . . . . 4 Utility 2 | . . . . . 2 Weapon 3 | . . . . . 3 Highest Loss Streak 7 | . . . . . 7 To Critical Strikes . | . . . . . . Average Slot Usage (%) 87 | . 86 85 85 99 83 Engine 11 | . 14 14 14 14 8 Core 2 | . . . . . 6 Wheel 5 | . 24 . . . . Hover 18 | . 3 28 28 28 19 Device 3 | . . . . . 7 Storage 11 | . 14 14 14 14 9 Hackware 8 | . 2 14 14 14 7 Energy Gun 8 | . 20 . . 13 1 Ballistic Gun 7 | . . . . . 17 Ballistic Cannon 6 | . 5 14 14 12 2 Naked Turns . | . . . . . . Heaviest Build 28 | 12 15 11 11 13 28 Greatest Support 20 | 20 20 12 12 12 18 Greatest Overweight (x) 2 | . . . . 1 2 Average Overweight (x) . | . . . . . 1 Largest Inventory Capacity 8 | 8 8 8 8 8 8 Average Capacity 7 | 6 8 8 8 8 8 Most Carried 8 | 5 8 8 8 8 8 Average Carried 6 | 1 4 8 8 7 7 Final Capacity 8 | 8 8 8 8 8 8 Final Carried 8 | 1 8 8 8 8 7 Class Distribution -------------------- 59% | Scavenger-Mutant 27% | Mutant 13% | Scavenger-Skirmisher Dominant Class ---------------- Mutant | -10/Materials Scavenger-Mutant | -10/Mines Scavenger-Mutant | -10/Exiles Scavenger-Mutant | -9/Mines Scavenger-Mutant | -8/Materials Resources | -11 -10 -10 -10 -9 -8 ----------- Run | Scr Mat Min Exi Min Mat Matter Collected 809 | 250 24 . . 122 413 Remotely . | . . . . . . Salvage Created 752 | . 115 . . 47 590 Parts 55 | . 13 . . 7 35 Haulers Intercepted . | . . . . . . Recyclers Shooed . | . . . . . . Parts Field Recycled . | . . . . . . Retrieved Matter . | . . . . . . Parts Self-Destructed . | . . . . . . Prevented . | . . . . . . Kills | -11 -10 -10 -10 -9 -8 ------- Run | Scr Mat Min Exi Min Mat Combat Hostiles Destroyed 17 | . 3 . . 2 12 Melee 1 | . . . . . 1 Guns 8 | . 3 . . 1 4 Cannons 3 | . . . . . 3 AOE 5 | . . . . 1 4 Classes Destroyed 9 | . 3 . . 1 5 Worker 1 | . . . . . 1 Builder 2 | . . . . . 2 Tunneler 1 | . . . . 1 . Recycler 2 | . . . . . 2 Operator 2 | . 1 . . . 1 Watcher 3 | . 2 . . . 1 Swarmer 10 | . 3 . . 2 5 Grunt 5 | . . . . . 5 Sentry 2 | . . . . . 2 Best Kill Streak 4 | . 3 . . 2 4 Combat Bots Only 4 | . 3 . . 2 4 Max Kills in Single Turn 3 | . 1 . . 1 3 Gunslinging . | . . . . . . Exploded 2 | . . . . 1 2 Melee 1 | . . . . . 1 Uniques/NPCs Destroyed . | . . . . . . Combat | -11 -10 -10 -10 -9 -8 -------- Run | Scr Mat Min Exi Min Mat Damage Taken 1426 | . 32 . . 104 1290 Core 486 | . 7 . . 24 455 Absorbed by Shields . | . . . . . . Core Remaining (%) 93 | 100 . . . 87 . Volleys Fired 56 | . 13 . . 6 37 Largest 3 | . 2 . . 2 3 Hottest 91 | . 75 . . 75 91 Shots Fired 110 | . 24 . . 11 75 Gun 75 | . 19 . . 5 51 Cannon 30 | . 5 . . 4 21 Launcher 5 | . . . . 2 3 Special . | . . . . . . Kinetic 65 | . 5 . . 4 56 Thermal 25 | . 8 . . 1 16 Explosive 5 | . . . . 2 3 Electromagnetic 15 | . 11 . . 4 . Robot Hit Streak 7 | . 5 . . 3 7 Robot Miss Streak 6 | . 2 . . 3 6 Penetration Max . | . . . . . . Secondary Targets . | . . . . . . Shots Hit Robots 65 | . 12 . . 5 48 Core Hits 37 | . 7 . . 4 26 Critical Kills . | . . . . . . Critical Parts Destroyed 2 | . . . . . 2 Critical Strikes 5 | . 1 . . 1 3 Blast 1 | . . . . . 1 Corrupt 2 | . 1 . . 1 . Smash 2 | . . . . . 2 Melee Attacks 15 | . . . . . 15 Impact 15 | . . . . . 15 Slashing . | . . . . . . Piercing . | . . . . . . Sneak Attacks 1 | . . . . . 1 Combat Hostiles . | . . . . . . Follow-up Attacks . | . . . . . . Damage Inflicted 1692 | . 207 . . 147 1338 Guns 659 | . 190 . . 34 435 Cannons 319 | . 17 . . 56 246 Explosions 389 | . . . . 57 332 Melee 321 | . . . . . 321 Ramming 4 | . . . . . 4 Kinetic 689 | . 17 . . 56 616 Thermal 83 | . 10 . . 8 65 Explosive 389 | . . . . 57 332 Electromagnetic 206 | . 180 . . 26 . Impact 321 | . . . . . 321 Slashing . | . . . . . . Piercing . | . . . . . . Highest Corruption . | . . . . . . Average Corruption . | . . . . . . Corruption Purged . | . . . . . . Corruption Blocked . | . . . . . . Overload Shots . | . . . . . . Overflow Damage 175 | . . . . . 175 Projectiles . | . . . . . . Explosions . | . . . . . . Melee 175 | . . . . . 175 Knockbacks 6 | . . . . 1 5 Impact 3 | . . . . . 3 Kinetic 3 | . . . . 1 2 Secondary . | . . . . . . Self-Inflicted Damage 1 | . . . . . 1 Shots . | . . . . . . Rammed 3 | . . . . . 3 Targets Rammed 3 | . . . . . 3 Kicked . | . . . . . . Crushed . | . . . . . . Highest Temperature 90 | . 38 . . 90 81 Average Temperature 21 | . 14 . . 36 21 Received Heat Transfer 189 | . . . . 54 135 Siege Activations . | . . . . . . Robots Corrupted . | . . . . . . Combat Hostiles . | . . . . . . Parts Fried 8 | . 2 . . . 6 Impact Corruptions 8 | . . . . . 8 Robots Melted . | . . . . . . Combat Hostiles . | . . . . . . Parts Melted 3 | . . . . . 3 Heat Transferred 333 | . 37 . . 37 259 Parts Sabotaged . | . . . . . . Parts Stolen . | . . . . . . Parts Stripped . | . . . . . . Power Chain Reactions . | . . . . . . Missiles Intercepted . | . . . . . . Alert | -11 -10 -10 -10 -9 -8 ------- Run | Scr Mat Min Exi Min Mat Peak Influence 515 | . 179 3 . 178 515 Initial 68 | . . 3 . . 68 Average 200 | . 98 3 . 72 354 Maximum Alert Level 2 | . . . . . 2 Low Security (%) 58 | 100 100 100 . 100 5 Level 1 30 | . . . . . 69 Level 2 10 | . . . . . 24 Level 3 . | . . . . . . Level 4 . | . . . . . . Level 5 . | . . . . . . High Security . | . . . . . . Max Security . | . . . . . . Squads Dispatched 5 | . 1 . . . 4 Investigation . | . . . . . . Extermination . | . . . . . . Reinforcement 5 | . 1 . . . 4 Assault . | . . . . . . Garrison . | . . . . . . Intercept . | . . . . . . Searches Triggered . | . . . . . . Construction Impeded . | . . . . . . Haulers Reinforced . | . . . . . . Active Scanning Responses . | . . . . . . Cargo Convoy Interrupts . | . . . . . . Stealth | -11 -10 -10 -10 -9 -8 --------- Run | Scr Mat Min Exi Min Mat Distress Signals 1 | . . . . . 1 Communications Jammed . | . . . . . . Distress Signals . | . . . . . . Times Spotted 43 | . 9 . . 4 30 Peak Tracking Total 5 | . 3 . . 2 5 Tactical Retreats 2 | . . . . . 2 Traps | -11 -10 -10 -10 -9 -8 ------- Run | Scr Mat Min Exi Min Mat Traps Triggered . | . . . . . . Indirectly . | . . . . . . Trap Hack Attempts . | . . . . . . Triggered . | . . . . . . Disarmed 4 | . 4 . . . . Reprogrammed . | . . . . . . Reused . | . . . . . . Traps Extracted . | . . . . . . Installed . | . . . . . . Triggered . | . . . . . . Machines | -11 -10 -10 -10 -9 -8 ---------- Run | Scr Mat Min Exi Min Mat Machines Disabled . | . . . . . . Max in Single Turn . | . . . . . . Machines Sabotaged . | . . . . . . Garrisons Compromised . | . . . . . . Overloaded Fab Kills . | . . . . . . Hacking | -11 -10 -10 -10 -9 -8 --------- Run | Scr Mat Min Exi Min Mat Machines Accessed 13 | . 8 . 1 1 3 Terminals 10 | . 7 . . 1 2 Fabricators . | . . . . . . Repair Stations 1 | . 1 . . . . Recycling Units . | . . . . . . Scanalyzers 1 | . . . . . 1 Garrison Access . | . . . . . . Total Hacks 38 | . 24 . 1 2 11 Successful 24 | . 11 . 1 1 11 Failed 14 | . 13 . . 1 . Catastrophic . | . . . . . . Database Lockouts . | . . . . . . Manual . | . . . . . . Terminals 27 | . 22 . . 2 3 Fabricators . | . . . . . . Repair Stations 2 | . 2 . . . . Recycling Units . | . . . . . . Scanalyzers 8 | . . . . . 8 Garrison Access . | . . . . . . Terminal Hacks 15 | . 10 . 1 1 3 Record 1 | . . . 1 . . Branch Access Points 1 | . . . . . 1 Locate Traps 3 | . 3 . . . . Disarm Traps 1 | . 1 . . . . Dispatch Records 1 | . 1 . . . . Surveillance Status 1 | . 1 . . . . Patrol Status 2 | . 1 . . . 1 Transport Status 1 | . 1 . . . . Reinforcement Status 1 | . 1 . . . . Hauler Manifests 2 | . 1 . . . 1 Zone Layout 1 | . . . . 1 . Fabricator Hacks . | . . . . . . Repair Station Hacks 1 | . 1 . . . . Refit 1 | . 1 . . . . Recycling Unit Hacks . | . . . . . . Scanalyzer 8 | . . . . . 8 Insert Component 4 | . . . . . 4 Analyze 4 | . . . . . 4 Garrison Access Hacks . | . . . . . . Unauthorized Hacks . | . . . . . . Terminals . | . . . . . . Fabricators . | . . . . . . Repair Stations . | . . . . . . Recycling Units . | . . . . . . Scanalyzers . | . . . . . . Garrison Access . | . . . . . . Data Cores Recovered . | . . . . . . Used . | . . . . . . Hacking Detections 9 | . 7 . . 1 1 Full Trace Events . | . . . . . . Feedback Events . | . . . . . . Feedback Blocked . | . . . . . . Robot Schematics Acquired . | . . . . . . Robots Built . | . . . . . . Authchips . | . . . . . . Time . | . . . . . . Total Robot Build Rating . | . . . . . . Part Schematics Acquired 4 | . . . . . 4 Parts Built . | . . . . . . Authchips . | . . . . . . Time . | . . . . . . Total Part Build Rating . | . . . . . . Parts Repaired . | . . . . . . Time . | . . . . . . Parts Recycled . | . . . . . . Recycled Matter . | . . . . . . Retrieved Matter . | . . . . . . Retrieved Components . | . . . . . . Parts Scanalyzed 4 | . . . . . 4 Part Schematics Acquired 4 | . . . . . 4 Parts Damaged . | . . . . . . Bothacking | -11 -10 -10 -10 -9 -8 ------------ Run | Scr Mat Min Exi Min Mat Used RIF Installer . | . . . . . . Robots Hacked . | . . . . . . Non-combat . | . . . . . . Combat . | . . . . . . Robot Hacks Applied . | . . . . . . Relay Couplers Released . | . . . . . . Fabnet Peak Effective % . | . . . . . . Robots Rewired . | . . . . . . Allies Hacked . | . . . . . . Hacks Repelled . | . . . . . . Allies | -11 -10 -10 -10 -9 -8 -------- Run | Scr Mat Min Exi Min Mat Total Allies 5 | . . 3 . 2 . Largest Group 5 | . . 3 3 5 5 Highest-Rated Group 80 | . . 40 40 80 80 Highest-Rated Ally 31 | . . 16 16 31 31 Total Orders . | . . . . . . Ally Attacks 70 | . . . . 11 59 Total Damage 813 | . . . . 148 665 Kills 7 | . . . . 2 5 Allies Corrupted . | . . . . . . Allies Melted . | . . . . . . Intel | -11 -10 -10 -10 -9 -8 ------- Run | Scr Mat Min Exi Min Mat Robot Analysis Total . | . . . . . . Derelict Logs Recovered 1 | . . 1 . . . Drone Launches . | . . . . . . Drone Recoveries . | . . . . . . Exploration | -11 -10 -10 -10 -9 -8 ------------- Run | Scr Mat Min Exi Min Mat Turns Passed 1761 | 39 427 45 153 385 712 Spaces Moved 1543 | 44 412 48 228 426 385 Core 25 | 21 . . . . 4 Treads . | . . . . . . Legs . | . . . . . . Wheels 376 | 23 353 . . . . Hover 1142 | . 59 48 228 426 381 Flight . | . . . . . . Fastest Speed 50 | 50 56 56 56 56 52 Average Speed 78 | 65 76 56 56 58 120 Slowest Speed 176 | 80 80 56 56 116 176 Overloaded Moves . | . . . . . . Propulsion Burnouts . | . . . . . . Robots Hopped . | . . . . . . Cave-ins Triggered . | . . . . . . Exploration Rate (%) 45 | 3 79 10 62 89 27 Regions Visited 5 Branch Regions 3 Pre-discovered Areas . | . . . . . . Known Exits Taken . | . . . . . . Unknown Exits Taken 5 | 1 1 1 1 1 . Scrap Searched 1 | . . . . 1 . Spaces Dug . | . . . . . . Terrain Destroyed 51 | . . . . 23 28 Melee . | . . . . . . Projectile . | . . . . . . AOE 51 | . . . . 23 28 Terrain Rammed . | . . . . . . Walls Destroyed . | . . . . . . Machines Disabled . | . . . . . . Actions | -11 -10 -10 -10 -9 -8 --------- Run | Scr Mat Min Exi Min Mat Total 1962 | 53 501 65 252 551 540 Wait 268 | . 54 18 25 112 59 Move 1538 | 43 411 47 227 425 385 Hop . | . . . . . . Pick Up 30 | 5 11 . . 2 12 Fast Attach 4 | 1 1 . . . 2 Attach 17 | 4 4 . . 2 7 Detach 1 | . 1 . . . . Swap 14 | . 1 . . 3 10 Drop 16 | . 5 . . 1 10 Fire 56 | . 13 . . 6 37 Melee 15 | . . . . . 15 Ram 3 | . . . . . 3 Kick . | . . . . . . Crush . | . . . . . . Escape Stasis . | . . . . . . Rewire . | . . . . . . Trap . | . . . . . . Miscellaneous . | . . . . . . Route ------- -11/Scrapyard -10/Materials (discovered 3 exits: [*Mat x2] / [*Min]) -10/Mines -10/Exiles -9/Mines -8/Materials (discovered 3 exits: Fac / Sto x2) History --------- Turn | Location | Event 5 | -11/Scrapyard | Discovered new exit (range 16) 40 | -11/Scrapyard | Entered Materials 184 | -10/Materials | Discovered new exit (range 6) 286 | -10/Materials | Discovered new exit (range 8) 322 | -10/Materials | Build established: Mutant 456 | -10/Materials | Discovered new exit (range 13) 467 | -10/Materials | Entered Mines 469 | -10/Mines | Learned 2 Materials zone layouts 469 | -10/Mines | Assisted by bots powering up and referring to "LRC-V3" 498 | -10/Mines | Deemed a non-threat by the Exiles lab entrance 498 | -10/Mines | Discovered new exit (range 5) 512 | -10/Mines | Entered Exiles 512 | -10/Exiles | Found Exiles lab abandoned 512 | -10/Exiles | Accompanied by 3 allies 635 | -10/Exiles | Discovered new exit (range 10) 665 | -10/Exiles | Entered Mines 665 | -9/Mines | Accompanied by 3 allies 678 | -9/Mines | Met a Derelict bent on vengeance 709 | -9/Mines | Build established: Scavenger-Mutant 803 | -9/Mines | Joined a pair of Derelicts in attacking an 0b10 outpost 1017 | -9/Mines | Discovered new exit (range 11) 1050 | -9/Mines | Entered Materials 1050 | -8/Materials | Accompanied by 5 allies 1050 | -8/Materials | Evolved 4 slots: Power x1, Propulsion x1, Utility x1, Weapon x1 1051 | -8/Materials | Identified exit to Factory 1051 | -8/Materials | Identified exit to Storage 1055 | -8/Materials | Led the pair of lost Derelicts to an unsafe place 1737 | -8/Materials | Core integrity fell below 50% 1760 | -8/Materials | Core integrity fell below 20% 1762 | -8/Materials | Self-destructed Last Messages --------------- 01736_ U-05 Engineer builds a Wall. 01736_ Knocked back. 01741_ Hvy. Mace destroyed. 01741_ Knocked back. 01744_ Slammed into H-61 Shepherd. 01745_ H-61 Shepherd calls for reinforcements. 01745_ ALERT: Suspicious intruders detected, dispatching Specialist reinforcements to area. 01746_ Knocked back. 01747_ Slug penetrates H-61 Shepherd. 01752_ Penetrated by Slug. 01753_ Slug penetrates H-61 Shepherd. 01753_ U-05 Engineer builds a Wall. 01755_ Slug penetrates H-61 Shepherd. 01756_ Penetrated by Slug. 01757_ Slug penetrates H-61 Shepherd. 01759_ Penetrated by Slug. 01761_ Slammed into H-61 Shepherd. 01762_ Acquired 2 matter. 01762_ Penetrated by Slug. Map ----- +----------------------------------------------------+ | # #????????????? ## #?## ##?????# ????????? | | # #????????????? ## #?############?# ????????? | | # #????????????? ## #????????# #?# ????????? | | # #????????? ???+###### ########## < ###+????????? | | # #????????? ??? # ????????? | | # ###??????? ???##### ####### # ????????? | | ####???# ???????# #?????# # ????????? | | # # ???????# #?????# # ????????? | | % + """"?? ???##### #?????# # ????????? | | %*# """"?? ??? ########?????# # ????????? | | = #??????# #?? #??### ####### # ????????? | | ##??????# #??""" #??# # # ????????? | | %#???????# #???????????????????????????????????? | | ######### +???????????????????????????????????? | | # ## #???????????????????????????????????? | | [# ## ##???#####??????????????????????????? | | % %# # ##### #??????????????????????????? | | [ # " " + #??????????????????????????? | | *#%"R" # ##### #??????????????????????????? | | *!#%""" ## ##???## ##??????????????????????????? | | ^ ######### #?????# #???????????????????????????? | | ![#! """" # #?????# #???????????????????????????? | | # """" # #?????# #?????????????? ##??????????? | | + """" # #???### ############ #??????????? | | %%# # #???## a h ????????? | | |!=# ! # #???##% % @ u ????????? | | ] # # #???## %% %H !????????? | | =* ######### #???## ########### #??????????? | | [#????####+###### ##????????????###??????????? | | /!#????# # #??????????????????????????? | | *=%#????# # #??????????????????????????? | | %=%#????# # #??????????????????????????? | | !%!#????# """ """ + #??????????????????????????? | | =###??# """ """ # #??????????????????????????? | | =%* #??# """ """ ### #??????????????????????????? | | ##??# #?# #??????????????????????????? | | % ##??# ### ###????????????????????????? | | % #??########### #????????????????????????? | | ##?????# # #????????????????????????? | | ##?????# + #????????????????????????? | | #??????# [ # #????????????????????????? | | # ###??????# # #????????????????????????? | | # #????????# ?## ##????????????????????????? | | # #????????# ??# #?????????????????????????? | | # ######?########### #?????????????????????????? | | # # #?# """ """ # #?????????????????????????? | | # # #?# """ """ # #?????????????????????????? | | # # #?# """ """ # #?????????????????????????? | | # # ### # #?????????????????????????? | | # # + + +[ #?????????????????????????? | +----------------------------------------------------+ Best States ------------- Heat Dissipation 31 Energy Generation 19 Energy Capacity 310 Matter Stores 300 Matter Capacity 300 Sight Range 18 Robot Scan Range 15 Terrain Scan Density 10 Evasion (%) 54 Offensive Hacking 10 Item Schematics ----------------- Cesium-ion Thruster | -8/Materials | Scanalyzed Hvy. Mace | -8/Materials | Scanalyzed System Shield | -8/Materials | Scanalyzed Imp. Datajack | -8/Materials | Scanalyzed Robot Schematics ------------------ None Fabricated ------------ Nothing Alien Tech Used ----------------- None Achievements -------------- None Challenges ------------ None Game ------ Seed RegenerativeRocketJammer Manual? 0 Play Time 00:18:01 Cumulative 40.0 hours Start 2022.03.25 @ 10:08:13 End 2022.03.25 @ 10:25:20 Sessions 1 Manual Loads 0 Difficulty Rogue Special Mode None Game No. 118 Rogue 118 Adventurer 0 Explorer 0 Win Type - Total 0 Types 0/0/0/0/0/0/0/0/0 Lore% 32 Gallery% 45 Achievement% 34 Wizard Run 0 Options --------- ASCII 0 Keyboard 0 Movement Mouse Keybinds 0 Fullscreen 1 Font 18/SmallcapsGlow Map View 76x50 Tactical HUD 1 Map Filters NONE Filters NONE Steam 1 RUN: 68b67cc6-060a-4178-be91-0fe5f476f150